[Event "DSIM-Finale"]
[Site "T#645894Emanuel Laske"]
[Date "2020.05.09"]
[Round "11"]
[White "Ilja Schneider"]
[Black "Rasmus Svane"]
[Result "0-1"]
[WhiteElo "1620"]
[BlackElo "1620"]
[Annotator "NA RC"]
[PlyCount "74"]
[EventDate "2020.05.09"]
[EventType "tourn (blitz)"]
[TimeControl "180+2"]

1. d4 {[%emt 0:00:02]} d5 {[%emt 0:00:02]} 2. c4 {[%emt 0:00:01]} e6 {[%emt 0:00:01]} 3. Nf3 {[%emt 0:00:01]} Nf6 {[%emt 0:00:01]} 4. e3 {[%emt 0:00:00]} b6 {[%emt 0:00:06]} 5. b3 {[%emt 0:00:03]} Bb7 {[%emt 0:00:01]} 6. Bb2 {[%emt 0:00:01]} Bd6 {[%emt 0:00:01]} 7. Bd3 {[%emt 0:00:01]} O-O {[%emt 0:00:01]} 8. O-O {[%emt 0:00:00]} Nbd7 {[%emt 0:00:01]} 9. Nc3 {[%emt 0:00:05]} a6 {[%emt 0:00:01]} 10. Rc1 {[%emt 0:00:02]} Qe7 {[%emt 0:00:01]} 11. Na4 {[%emt 0:00:12]} dxc4 {[%emt 0:00:05]} 12. bxc4 {[%emt 0:00:03]} Ne4 {[%emt 0:00:08]} 13. c5 {[%emt 0:00:14]} bxc5 {[%emt 0:00:04]} 14. Qc2 {[%emt 0:00:02]} f5 {[%emt 0:00:05]} 15. Ne5 {[%emt 0:00:55]} cxd4 {[%emt 0:00:10]} 16. exd4 {[%emt 0:00:03]} Rac8 {[%emt 0:00:26]} 17. f3 {[%emt 0:00:07]} Nef6 {[%emt 0:00:02]} 18. Nc5 {[%emt 0:00:12]} Nxe5 {[%emt 0:00:24]} 19. dxe5 {[%emt 0:00:03]} Bxc5+ {[%emt 0:00:01]} 20. Qxc5 {[%emt 0:00:00]} Qxc5+ {[%emt 0:00:01]} 21. Rxc5 {[%emt 0:00:01]} Nd5 {[%emt 0:00:04]} 22. Ba3 {[%emt 0:00:02]} Rfd8 {[%emt 0:00:05]} 23. Rb1 {[%emt 0:00:05]} Nb6 {[%emt 0:00:09]} 24. Bc2 {[%emt 0:00:03]} Kf7 {[%emt 0:00:03]} 25. Bb3 {[%emt 0:00:05]} Bd5 {[%emt 0:00:08]} 26. Rbc1 {[%emt 0:00:10]} Bxb3 {[%emt 0:00:02]} 27. axb3 {[%emt 0:00:09]} Nd5 {[%emt 0:00:02]} 28. Rc6 {[%emt 0:00:06]} Rb8 {[%emt 0:00:01]} 29. Rxa6 {[%emt 0:00:07]} Rxb3 {[%emt 0:00:03]} 30. Ra7 {[%emt 0:00:01]} Kg6 {[%emt 0:00:24]} 31. Rc6 {[%emt 0:00:06]} Re8 {[%emt 0:00:16]} 32. h3 {[%emt 0:00:05]} Re3 {[%emt 0:00:10]} 33. Kf2 {[%emt 0:00:11]} Rd3 {[%emt 0:00:12]} 34. Kg3 {[%emt 0:00:12]} Rd2 {[%emt 0:00:03]} 35. h4 {[%emt 0:00:06]} f4+ {[%emt 0:00:08]} 36. Kh3 {[%emt 0:00:01]} Kf5 {[%emt 0:00:01]} 37. Bc1 {[%emt 0:00:20]} Rd1 {[%emt 0:00:03] Ilja Schneider gibt auf (Lag: Av=0.38s, max=1.0s)} 0-1